Cogmind - Beta 12 @@@ ROGUE MODE // 2023.08.01 @ 18:24:11 Player: mintimati Result: Destroyed by Y-54 Guardian with Gatling Laser Performance ------------- Evolutions (3) 1500 Regions Visited (6) 1200 Robots Destroyed (108) 540 Value Destroyed (2258) 2258 Prototype IDs (1) 20 Alien Tech Used (0) 0 Bonus (0) 0 TOTAL SCORE: 5518 Bonus ------- None Cogmind --------- Core Integrity 0/700 Matter 290/300 Energy 98/100 System Corruption 18% Temperature Cool (6) Movement Core (50) Location -7/Lower Caves Parts ------- > --- POWER (1) -------- (None) > --- PROPULSION (4) --- (None) > --- UTILITY (5) ------ (None) > --- WEAPON (3) ------- (None) > --- INVENTORY (5) ---- Micro Nuclear Core Improved Heat Sink Component Analysis Suite Trap Extractor Remote Datajack Peak State ------------ > --- POWER ------------ Micro Nuclear Core > --- PROPULSION ------- Compact Wheel Compact Wheel Armored Huge Wheel > --- UTILITY ---------- Medium Storage Unit Improved Signal Interpreter Advanced Terrain Scan Processor Advanced ECM Suite Improved Light Armor Plating > --- WEAPON ----------- Lightning Gun Arc Projector High-powered Shotgun > --- INVENTORY -------- Improved Heat Sink Improved Heat Sink Medium Storage Unit Component Analysis Suite Particle Gun Gauss Rifle Remote Datajack Katana [Rating: 42] Favorites ----------- Power Micro Nuclear Core Engine Light Ion Engine Power Core Micro Nuclear Core Propulsion Compact Wheel Leg Aluminum Leg Wheel Compact Wheel Utility Medium Storage Unit Device Advanced ECM Suite Storage Medium Storage Unit Processor Advanced Terrain Scan Processor Hackware Hacking Suite Protection Improved Weapon Shielding Weapon Assault Rifle Energy Gun Shock Rifle Energy Cannon EM Pulse Cannon Ballistic Gun Assault Rifle Ballistic Cannon Advanced Assault Cannon Launcher Grenade Launcher Special Weapon Remote Datajack Impact Weapon Hammer Slashing Weapon Katana Build | -11 -10 -9 -9 -8 -7 -7 ------- Run | Jun Mat Mat Min Mat Fac Low Slots Evolved 6 | . . 2 . 2 2 . Power . | . . . . . . . Propulsion 2 | . . . . 1 1 . Utility 3 | . . 2 . 1 . . Weapon 1 | . . . . . 1 . Parts Attached 112 | 9 18 14 2 17 39 13 Power 17 | 2 3 3 . 1 5 3 Engine 12 | 2 3 3 . 1 3 . Core 5 | . . . . . 2 3 Reactor . | . . . . . . . Propulsion 20 | 2 5 1 1 3 8 . Treads . | . . . . . . . Leg 6 | 2 2 . . . 2 . Wheel 14 | . 3 1 1 3 6 . Hover . | . . . . . . . Flight . | . . . . . . . Utility 21 | 3 2 6 . 4 4 2 Device 10 | 2 . 3 . 3 2 . Storage 4 | 1 1 . . 1 . 1 Processor 3 | . . 1 . . 2 . Hackware 1 | . 1 . . . . . Protection 3 | . . 2 . . . 1 Artifact . | . . . . . . . Weapon 54 | 2 8 4 1 9 22 8 Energy Gun 7 | . . . . . 3 4 Energy Cannon 8 | . . 3 . 2 3 . Ballistic Gun 17 | 2 4 . . 4 5 2 Ballistic Cannon 3 | . . . . . 3 . Launcher 7 | . 1 . 1 3 1 1 Special Weapon 1 | . . . . . 1 . Impact Weapon 4 | . 3 1 . . . . Slashing Weapon 7 | . . . . . 6 1 Piercing Weapon . | . . . . . . . Special Melee Weapon . | . . . . . . . Unidentified Prototypes 1 | . . 1 . . . . Parts Lost 29 | . 4 . . 4 8 13 Power 4 | . 2 . . . 1 1 Propulsion 11 | . 2 . . 1 5 3 Utility 5 | . . . . 2 1 2 Weapon 9 | . . . . 1 1 7 Highest Loss Streak 7 | . 1 . . 2 2 7 To Critical Strikes . | . . . . . . . Average Slot Usage (%) 87 | . 87 99 100 93 84 71 Engine 6 | . 10 11 11 9 2 . Core 2 | . . . . . 4 6 Leg 5 | . 15 . . . 3 . Wheel 14 | . 3 22 22 25 15 11 Device 15 | . 13 10 11 16 22 6 Storage 11 | . 14 11 11 17 8 6 Processor 3 | . . 9 . . 2 13 Protection 3 | . . 8 22 7 . 5 Energy Gun 1 | . . . . . 3 4 Energy Cannon 3 | . . 6 15 7 3 . Ballistic Gun 8 | . 11 9 . 4 7 14 Ballistic Cannon 1 | . . . . . 3 . Launcher 3 | . 7 3 6 6 . . Impact Weapon 2 | . 8 2 . . . . Slashing Weapon 1 | . . . . . 3 . Naked Turns 78 | . . . . . . 78 Heaviest Build 49 | 14 20 38 38 42 49 33 Greatest Support 60 | 20 32 32 26 42 60 60 Greatest Overweight (x) 7 | . 6 1 1 1 2 7 Average Overweight (x) . | . . . 1 . . . Largest Inventory Capacity 10 | 8 10 10 10 10 10 10 Average Capacity 9 | 7 9 10 10 10 10 9 Most Carried 10 | 5 10 10 10 10 10 10 Average Carried 7 | 2 6 7 8 7 7 8 Final Capacity 10 | 8 10 10 10 10 10 5 Final Carried 10 | 3 9 8 9 5 10 5 Class Distribution -------------------- 43% | Scavenger-Mutant 34% | Mutant 10% | Scavenger-Skirmisher 6% | Scavenger-Tank Dominant Class ---------------- Mutant | -10/Materials Scavenger-Mutant | -9/Materials Mutant | -9/Mines Scavenger-Mutant | -8/Materials Scavenger-Mutant | -7/Factory Scavenger-Tank | -7/Lower Caves Resources | -11 -10 -9 -9 -8 -7 -7 ----------- Run | Jun Mat Mat Min Mat Fac Low Matter Collected 2579 | 290 559 259 60 296 686 429 Remotely 42 | 42 . . . . . . Salvage Created 3655 | 124 1094 390 93 638 848 468 Parts 179 | 7 62 14 1 32 40 23 Haulers Intercepted 3 | . 1 1 . 1 . . Recyclers Shooed 9 | . 1 1 . 1 6 . Parts Field Recycled . | . . . . . . . Retrieved Matter . | . . . . . . . Parts Self-Destructed 19 | . . . . . . 19 Prevented 4 | . . . . . . 4 Kills | -11 -10 -9 -9 -8 -7 -7 ------- Run | Jun Mat Mat Min Mat Fac Low Combat Hostiles Destroyed 55 | . 15 4 2 12 8 14 Melee 6 | . 3 . . . 3 . Guns 24 | . 3 3 . 1 4 13 Cannons 8 | . . 1 2 4 1 . AOE 17 | . 9 . . 7 . 1 Classes Destroyed 15 | 2 8 1 . 1 2 1 Worker 13 | . 8 . . 3 2 . Builder 10 | . 9 1 . . . . Tunneler 3 | 1 1 1 . . . . Hauler 3 | . 1 1 . 1 . . Recycler 17 | 1 5 2 . 3 6 . Mechanic 1 | . 1 . . . . . Operator 3 | . 3 . . . . . Watcher 3 | . 3 . . . . . Swarmer 20 | . 8 . . 4 . 8 Grunt 25 | . 7 3 2 6 2 5 Brawler 1 | . . . . . . 1 Duelist 2 | . . 1 . 1 . . Sentry 1 | . . . . . 1 . Hunter 2 | . . . . 1 1 . Programmer 4 | . . . . . 4 . Best Kill Streak 6 | 1 5 5 1 6 3 4 Combat Bots Only 5 | . 3 3 1 5 2 4 Max Kills in Single Turn 3 | 1 2 1 1 3 1 1 Gunslinging . | . . . . . . . Exploded 3 | . 1 . . 3 . 1 Melee 1 | . 1 . . . 1 . Uniques/NPCs Destroyed . | . . . . . . . Combat | -11 -10 -9 -9 -8 -7 -7 -------- Run | Jun Mat Mat Min Mat Fac Low Damage Taken 5003 | . 788 204 147 610 1643 1611 Core 1028 | . 126 63 32 101 224 482 Absorbed by Shields . | . . . . . . . Redirected to Shielding 102 | . . . 31 71 . . Core Remaining (%) 76 | 100 49 . 76 81 . . Volleys Fired 228 | 16 64 20 8 49 39 32 Largest 3 | 1 2 2 2 2 3 3 Hottest 135 | 20 50 76 126 96 128 135 Shots Fired 401 | 16 97 26 16 86 84 76 Gun 295 | 16 73 20 . 48 67 71 Cannon 65 | . . 6 15 25 16 3 Launcher 40 | . 24 . 1 13 . 2 Special 1 | . . . . . 1 . Kinetic 253 | 16 73 20 . 48 45 51 Thermal 13 | . . . . . 7 6 Explosive 40 | . 24 . 1 13 . 2 Electromagnetic 94 | . . 6 15 25 31 17 Robot Hit Streak 13 | 3 11 6 7 9 13 13 Robot Miss Streak 7 | 3 3 2 1 5 4 7 Penetration Max 1 | . . . . 1 . . Secondary Targets 5 | . 2 . . . . 3 Max Gunslinging Chain 1 | . 1 . . . . 1 Shots Hit Robots 295 | 8 93 19 6 48 69 52 Core Hits 135 | 4 39 11 2 29 24 26 Critical Kills 3 | . 1 1 . . . 1 Critical Parts Destroyed 6 | . 4 . . 1 . 1 Critical Strikes 12 | . 5 1 . 3 1 2 Destroy 4 | . . 1 . 1 . 2 Corrupt 2 | . . . . 2 . . Smash 5 | . 5 . . . . . Sever 1 | . . . . . 1 . Melee Attacks 107 | . 45 1 . . 60 1 Impact 46 | . 45 1 . . . . Slashing 61 | . . . . . 60 1 Piercing . | . . . . . . . Sneak Attacks 28 | . 19 1 . . 8 . Combat Hostiles . | . . . . . . . Follow-up Attacks . | . . . . . . . Damage Inflicted 7673 | 137 2768 358 228 1529 1691 962 Guns 2766 | 97 606 156 . 489 636 782 Cannons 944 | . . 133 161 402 202 46 Explosions 1667 | . 819 . 67 638 40 103 Melee 2248 | . 1342 69 . . 806 31 Ramming 48 | 40 1 . . . 7 . Kinetic 2489 | 97 606 156 . 489 544 597 Thermal 275 | . . . 67 . 113 95 Explosive 1560 | . 819 . . 638 . 103 Electromagnetic 1053 | . . 133 161 402 221 136 Impact 1411 | . 1342 69 . . . . Slashing 837 | . . . . . 806 31 Piercing . | . . . . . . . Highest Corruption 18 | . . 5 5 . 18 18 Average Corruption 13 | . . 5 5 . 14 18 Corruption Purged . | . . . . . . . Corruption Blocked . | . . . . . . . Effects 121 | . . 5 8 . 69 39 Message Errors 27 | . . 2 . . 20 5 Matter Fused 22 | . . 1 4 . 9 8 Heat Flow Errors 16 | . . 1 3 . 10 2 Energy Discharges 14 | . . 1 1 . 5 7 Parts Rejected 2 | . . . . . 2 . Parts Fused 2 | . . . . . 1 1 Data Loss (minor) 18 | . . . . . 12 6 Data Loss (major) 4 | . . . . . 3 1 Misfires 3 | . . . . . 2 1 Alerts 5 | . . . . . 3 2 Misdirections 4 | . . . . . 1 3 Weapon Failures 4 | . . . . . 1 3 Overload Shots . | . . . . . . . Overflow Damage 703 | . 461 49 5 62 126 . Projectiles 26 | . . . 5 21 . . Explosions 84 | . 43 . . 41 . . Melee 593 | . 418 49 . . 126 . Knockbacks 9 | . 5 2 . . 2 . Impact 6 | . 5 1 . . . . Kinetic 2 | . . . . . 2 . Secondary 1 | . . 1 . . . . Self-Inflicted Damage 215 | . 167 . . 9 . 39 Shots 8 | . 6 . . 1 . 1 Rammed . | . . . . . . . Targets Rammed 15 | 12 1 . . . 2 . Kicked 15 | 12 1 . . . 2 . Crushed . | . . . . . . . Highest Temperature 319 | . 1 265 319 81 269 218 Average Temperature 83 | . 1 63 149 33 81 73 Received Heat Transfer 963 | . 258 60 81 207 39 318 Effects 2 | . . . 1 . 1 . Energy Bleed 2 | . . . 1 . 1 . Siege Activations . | . . . . . . . Robots Corrupted . | . . . . . . . Combat Hostiles . | . . . . . . . Parts Fried 34 | . 27 3 . 4 . . Impact Corruptions 23 | . 21 2 . . . . Robots Melted . | . . . . . . . Combat Hostiles . | . . . . . . . Parts Melted . | . . . . . . . Heat Transferred 396 | . . . 100 . 111 185 Parts Sabotaged . | . . . . . . . Parts Stolen . | . . . . . . . Parts Stripped . | . . . . . . . Power Chain Reactions 1 | . . . . . 1 . Missiles Intercepted . | . . . . . . . Alert | -11 -10 -9 -9 -8 -7 -7 ------- Run | Jun Mat Mat Min Mat Fac Low Peak Influence 391 | 10 391 272 139 292 168 . Initial 165 | . 6 165 31 53 132 . Average 115 | 4 165 153 121 150 63 . Maximum Alert Level 1 | . 1 1 . 1 . . Low Security (%) 83 | 100 57 86 100 79 100 . Level 1 16 | . 42 13 . 20 . . Level 2 . | . . . . . . . Level 3 . | . . . . . . . Level 4 . | . . . . . . . Level 5 . | . . . . . . . High Security . | . . . . . . . Max Security . | . . . . . . . Squads Dispatched 10 | . 4 . . 2 4 . Investigation 3 | . 2 . . 1 . . Extermination 3 | . . . . . 3 . Reinforcement 4 | . 2 . . 1 1 . Assault . | . . . . . . . Garrison . | . . . . . . . Intercept . | . . . . . . . Searches Triggered . | . . . . . . . Construction Impeded . | . . . . . . . Haulers Reinforced . | . . . . . . . Active Scanning Responses . | . . . . . . . Cargo Convoy Interrupts . | . . . . . . . Stealth | -11 -10 -9 -9 -8 -7 -7 --------- Run | Jun Mat Mat Min Mat Fac Low Distress Signals 2 | . 2 . . . . . Communications Jammed . | . . . . . . . Distress Signals . | . . . . . . . Times Spotted 88 | . 26 4 3 16 16 23 Peak Tracking Total 7 | . 4 3 2 4 3 7 Tactical Retreats 15 | . 5 . 1 2 3 4 Traps | -11 -10 -9 -9 -8 -7 -7 ------- Run | Jun Mat Mat Min Mat Fac Low Traps Triggered 2 | . . . . 1 . 1 Indirectly . | . . . . . . . Trap Hack Attempts . | . . . . . . . Triggered . | . . . . . . . Disarmed 3 | . 3 . . . . . Reprogrammed . | . . . . . . . Reused . | . . . . . . . Traps Extracted . | . . . . . . . Installed . | . . . . . . . Triggered 2 | . . . . . . 2 Machines | -11 -10 -9 -9 -8 -7 -7 ---------- Run | Jun Mat Mat Min Mat Fac Low Machines Disabled 4 | . 1 . 1 1 1 . Max in Single Turn 1 | . 1 . 1 1 1 . Machines Repaired . | . . . . . . . Machines Sabotaged . | . . . . . . . Overloaded Fab Kills . | . . . . . . . Hacking | -11 -10 -9 -9 -8 -7 -7 --------- Run | Jun Mat Mat Min Mat Fac Low Machines Accessed 16 | . 7 1 . 3 5 . Terminals 11 | . 4 1 . 3 3 . Fabricators 1 | . . . . . 1 . Repair Stations 2 | . 1 . . . 1 . Recycling Units 2 | . 2 . . . . . Scanalyzers . | . . . . . . . Garrison Access . | . . . . . . . Total Hacks 40 | . 19 1 . 10 10 . Successful 16 | . 11 1 . 1 3 . Failed 24 | . 8 . . 9 7 . Catastrophic 7 | . 2 . . 4 1 . Database Lockouts . | . . . . . . . Manual 16 | . 5 . . 10 1 . Terminals 28 | . 12 1 . 10 5 . Fabricators 2 | . . . . . 2 . Repair Stations 6 | . 3 . . . 3 . Recycling Units 4 | . 4 . . . . . Scanalyzers . | . . . . . . . Garrison Access . | . . . . . . . Terminal Hacks 9 | . 5 1 . 1 2 . Record 1 | . 1 . . . . . Open DSF 1 | . . . . . 1 . Branch Access Points 3 | . 1 . . 1 1 . Emergency Access Points 1 | . 1 . . . . . Disarm Traps 1 | . 1 . . . . . Dispatch Records 2 | . 1 1 . . . . Fabricator Hacks 1 | . . . . . 1 . Build 1 | . . . . . 1 . Repair Station Hacks 2 | . 2 . . . . . Scan Component 2 | . 2 . . . . . Recycling Unit Hacks 4 | . 4 . . . . . Process 2 | . 2 . . . . . Retrieve Matter 1 | . 1 . . . . . Retrieve Components 1 | . 1 . . . . . Scanalyzer . | . . . . . . . Garrison Access Hacks . | . . . . . . . Unauthorized Hacks . | . . . . . . . Terminals . | . . . . . . . Fabricators . | . . . . . . . Repair Stations . | . . . . . . . Recycling Units . | . . . . . . . Scanalyzers . | . . . . . . . Garrison Access . | . . . . . . . Data Cores Recovered 1 | . 1 . . . . . Used . | . . . . . . . Hacking Detections 11 | . 4 . . 3 4 . Full Trace Events 3 | . 2 . . 1 . . Feedback Events . | . . . . . . . Feedback Blocked . | . . . . . . . Robot Schematics Acquired . | . . . . . . . Robots Built . | . . . . . . . Authchips . | . . . . . . . Time 81 | . . . . . 81 . Total Robot Build Rating . | . . . . . . . Part Schematics Acquired . | . . . . . . . Parts Built . | . . . . . . . Authchips . | . . . . . . . Time . | . . . . . . . Total Part Build Rating . | . . . . . . . Parts Repaired . | . . . . . . . Time . | . . . . . . . Parts Recycled . | . . . . . . . Recycled Matter 277 | . 277 . . . . . Retrieved Matter 6 | . 6 . . . . . Retrieved Components . | . . . . . . . Parts Scanalyzed . | . . . . . . . Part Schematics Acquired . | . . . . . . . Parts Damaged . | . . . . . . . Bothacking | -11 -10 -9 -9 -8 -7 -7 ------------ Run | Jun Mat Mat Min Mat Fac Low Used RIF Installer . | . . . . . . . Robots Hacked 1 | . . . . . 1 . Non-combat 1 | . . . . . 1 . Combat . | . . . . . . . Robot Hacks Applied 1 | . . . . . 1 . no_distress 1 | . . . . . 1 . Relay Couplers Released . | . . . . . . . Fabnet Peak Effective % . | . . . . . . . Robots Rewired . | . . . . . . . Allies Hacked . | . . . . . . . Hacks Repelled . | . . . . . . . Allies | -11 -10 -9 -9 -8 -7 -7 -------- Run | Jun Mat Mat Min Mat Fac Low Total Allies . | . . . . . . . Largest Group . | . . . . . . . Highest-Rated Group . | . . . . . . . Highest-Rated Ally . | . . . . . . . Total Orders . | . . . . . . . Ally Attacks . | . . . . . . . Total Damage . | . . . . . . . Kills . | . . . . . . . Allies Corrupted . | . . . . . . . Allies Melted . | . . . . . . . Intel | -11 -10 -9 -9 -8 -7 -7 ------- Run | Jun Mat Mat Min Mat Fac Low Robot Analysis Total . | . . . . . . . Derelict Logs Recovered 2 | . . . 1 . . 1 Drone Launches . | . . . . . . . Drone Recoveries . | . . . . . . . Exploration | -11 -10 -9 -9 -8 -7 -7 ------------- Run | Jun Mat Mat Min Mat Fac Low Turns Passed 6044 | 249 1589 556 291 726 1889 744 Spaces Moved 3181 | 162 669 216 242 301 972 619 Core 260 | 20 81 . . . . 159 Treads . | . . . . . . . Legs 690 | 142 395 . . . 153 . Wheels 2231 | . 193 216 242 301 819 460 Hover . | . . . . . . . Flight . | . . . . . . . Fastest Speed 50 | 50 90 90 95 93 90 50 Average Speed 111 | 111 151 101 102 95 106 93 Slowest Speed 400 | 120 350 105 105 115 190 400 Overloaded Moves . | . . . . . . . Propulsion Burnouts . | . . . . . . . Robots Hopped . | . . . . . . . Cave-ins Triggered 1 | . . . . . 1 . Exploration Rate (%) 30 | 7 55 14 50 16 23 48 Regions Visited 6 Branch Regions 2 Pre-discovered Areas . | . . . . . . . Known Exits Taken 1 | . . . . . 1 . Unknown Exits Taken 5 | 1 1 1 1 1 . . Scrap Searched 1 | . . . . . . 1 Spaces Dug 60 | . 11 . . 18 31 . Terrain Destroyed 339 | . 168 . 28 91 36 16 Melee 34 | . 3 . . . 31 . Projectile 3 | . . . . . 3 . AOE 302 | . 165 . 28 91 2 16 Terrain Rammed . | . . . . . . . Walls Destroyed . | . . . . . . . Machines Disabled . | . . . . . . . Actions | -11 -10 -9 -9 -8 -7 -7 --------- Run | Jun Mat Mat Min Mat Fac Low Total 5115 | 212 1073 527 268 653 1664 718 Wait 1330 | 1 242 251 14 272 502 48 Move 3175 | 161 668 215 241 300 971 619 Hop . | . . . . . . . Pick Up 94 | 11 22 13 2 10 32 4 Fast Attach . | . . . . . . . Attach 48 | 8 5 5 . 9 14 7 Detach 8 | 1 1 3 . . 3 . Swap 64 | 1 13 9 2 8 25 6 Drop 46 | 1 12 10 1 5 16 1 Fire 228 | 16 64 20 8 49 39 32 Melee 107 | . 45 1 . . 60 1 Ram . | . . . . . . . Kick 15 | 12 1 . . . 2 . Crush . | . . . . . . . Escape Stasis . | . . . . . . . Rewire . | . . . . . . . Trap . | . . . . . . . Miscellaneous . | . . . . . . . Route ------- -11/Junkyard -10/Materials (discovered 4 exits: *Mat x2 / *Min x2) -9/Materials -9/Mines -8/Materials -7/Factory (discovered 2 exits: *Low x2) -7/Lower Caves History --------- Turn | Location | Event 3 | -11/Junkyard | Discovered new exit (range 15) 250 | -11/Junkyard | Entered Materials 308 | -10/Materials | Build established: Mutant 561 | -10/Materials | Discovered new exit (range 15) 1167 | -10/Materials | Core integrity fell below 50% 1670 | -10/Materials | Discovered new exit (range 12) 1780 | -10/Materials | Discovered new exit (range 16) 1791 | -10/Materials | Identified exit to Mines 1839 | -10/Materials | Entered another Materials area 1839 | -9/Materials | Evolved 2 slots: Utility x2 1918 | -9/Materials | Build established: Scavenger-Mutant 2290 | -9/Materials | Discovered new exit (range 17) 2395 | -9/Materials | Entered Mines 2397 | -9/Mines | Met a Derelict bent on vengeance 2480 | -9/Mines | Learned Materials terminal intel 2488 | -9/Mines | Received a Rocket Launcher from a helpful Derelict 2503 | -9/Mines | Assembled infested the area 2607 | -9/Mines | Build established: Mutant 2672 | -9/Mines | Discovered new exit (range 16) 2686 | -9/Mines | Entered Materials 2686 | -8/Materials | Evolved 2 slots: Propulsion x1, Utility x1 2687 | -8/Materials | Loaded intel: 12 terminal locations 2921 | -8/Materials | Build established: Scavenger-Mutant 3364 | -8/Materials | Discovered new exit (range 10) 3412 | -8/Materials | Entered Factory 3412 | -7/Factory | Evolved 2 slots: Propulsion x1, Weapon x1 3646 | -7/Factory | Identified exit to Lower Caves 3802 | -7/Factory | Crushed by falling debris 3987 | -7/Factory | System corruption reached 10% 5301 | -7/Factory | Entered Lower Caves 5342 | -7/Lower Caves | Lost 3 parts (1u2w) 5874 | -7/Lower Caves | Core integrity fell below 50% 5932 | -7/Lower Caves | Attracted the attention of an 0b10 outpost 5967 | -7/Lower Caves | Released all parts (6) 5989 | -7/Lower Caves | Attracted the attention of an 0b10 checkpoint 5990 | -7/Lower Caves | Learned 12 Factory zone layouts 5996 | -7/Lower Caves | Lost 7 parts (1p1n1u4w) 6000 | -7/Lower Caves | Core integrity fell below 20% 6045 | -7/Lower Caves | Destroyed by Y-54 Guardian with Gatling Laser Last Messages --------------- 05967_ Released Imp. Signal Interpreter. 05967_ Released Katana. 05967_ Released Arc Projector. 05971_ System corrupted: Component data lost. 05985_ Acquired 31 matter. 05988_ Acquired 50 matter. 05989_ System corrupted: Energy discharge (-28). 05989_ Y-54 Guardian: "INTERCEPTING UNREGISTERED DERELICT." 05990_ Acquired derelict log, extracted data. Data stored: Factory zone layouts (x12). 06001_ Searching scrap... 06001_ Found Unknown Protection. 06001_ Found Enh. Flamer. 06001_ Found Mak. Flight Unit. 06001_ Found Adv. Treads. 06001_ Found 25 Matter. 06007_ System corrupted: Component data lost. 06028_ System corrupted: Matter fused (-7). 06040_ Acquired 25 matter. 06044_ System corrupted: Component data lost. Map ----- +----------------------------------------------------+ | ?????????????## ######????????# # *#!!## | | ?????????????# #??????### #""""""#/[#? | | ??????????????# #??##### ######## #? | | ??????????????## ## #?## ## | | ???????????????## ### #?# ######### ## | | ??????? ????????# ! ##?# ### # # ####### | | ?????? #??????## ##??# | | ?????? ??????## #???# # ## | | ??????# ###???# #???###### ###### # | | ?????# #??# #????????## # ##???# ## | | ?????# #?# #?????????## ##???## ## | | ????# ## #??????????# # ###????# ## | | ???? #??????????# # #?????# | | ???? #??????????# #????## | | ???? ##### #?????????? ###?????## ## | | ????? ?? ????# #?????????? #????????# #? | | ?????????? #????# #??????????## #???????## #? | | ?????????? #??### #???????????? ????????# ## | | ?????????? #?## # ####????????? ????????# | | ?????????? #?# # ##???????? ????????# | | ??????#### #?## ##???????###???????## | | ###??## ##### #??????????????????## * # | | # ##?# ##??????????????????# !# | | #?# Y ####???????????????# !## | | " #?# ###s ## #?????# #? | | #### #?## @ #??????# #? | | ### #??# #### #??????# #? | | " #??# #???? #?????# #? | | " #???## #????? ??? #?????# #? | | ### ##???## ##????????????????????# ## | | # ##?# ##???# #?????????????????????# | | ####?## #???# ##?????????????????????# | | ?????# #???## #??????????????????????##### | | ?????# #????## #??????????????????????????# | | ?????# ##????## =#??????????????????????????# | | ?????# ##????#! #??????????????????????????# | | #???## ######|=#??????????????????????????? | | ##?# #??????????????????????????? | | ### ## #??????????????????????????? | | #############??????????????????????????? | | ## ##??????????????????????????????????????? | | ?#########???????????????????????????????????????? | | ?????????????????????????????????????????????????? | | ?????????????????????????????????????????????????? | | ?????????????????????????????????????????????????? | | ?????????????????????????????????????????????????? | | ?????????????????????????????????????????????????? | | ?????????????????????????????????????????????????? | | ?????????????????????????????????????????????????? | | ?????????????????????????????????????????????????? | +----------------------------------------------------+ Best States ------------- Heat Dissipation 34 Energy Generation 16 Energy Capacity 290 Matter Stores 300 Matter Capacity 300 Sight Range 18 Terrain Scan Range 16 Terrain Scan Density 210 ECM Strength 2 Armor Coverage 150 Weapon Shielding 66 Evasion (%) 55 Recoil Reduction 4 Offensive Hacking 10 Item Schematics ----------------- None Robot Schematics ------------------ None Fabricated ------------ Nothing Alien Tech Used ----------------- None Achievements -------------- Let's See Who's Tougher Challenges ------------ None Game ------ Seed CoordinationNeutronMultirail Manual? 0 Play Time 01:05:33 Cumulative 6.3 hours Start 2023.08.01 @ 16:49:57 End 2023.08.01 @ 18:24:11 Sessions 5 Manual Loads 0 Difficulty Rogue Special Mode None Game No. 7 Rogue 7 Adventurer 0 Explorer 0 Win Type - Total 0 Types 0/0/0/0/0/0/0/0/0 Lore% 2 Gallery% 12 Achievement% 12 Wizard Run 0 Options --------- ASCII 0 Keyboard 1 Movement Numpad Keybinds 0 Fullscreen 1 Font 18/X11 Map View 76x50 Tactical HUD 1 Map Filters NONE Filters NONE Steam 1 RUN: 2a0cd837-01a0-4870-b65e-be30de8c88a4